[Event "Live Chess"]
[Site "Chess.com"]
[Date "2021.03.17"]
[Round "4"]
[White "chesspilot01"]
[Black "Joseph_Truelsons_Fan"]
[Result "1-0"]
[CurrentPosition "1r6/1P1k3p/7R/4ppp1/1R6/5P2/5KPP/8 b - -"]
[Timezone "UTC"]
[ECO "B92"]
[ECOUrl "https://www.chess.com/openings/Sicilian-Defense-Open-Najdorf-Opocensky-Variation...7.Nb3-Be7-8.Be3-Be6"]
[UTCDate "2021.03.17"]
[UTCTime "03:02:14"]
[WhiteElo "2084"]
[BlackElo "1785"]
[TimeControl "2100+2"]
[Termination "chesspilot01 won by resignation"]
[StartTime "03:02:14"]
[EndDate "2021.03.17"]
[EndTime "03:52:28"]
[Link "https://www.chess.com/game/live/9689106631"]

1. e4 {[%clk 0:34:49.3]} 1... c5 {[%clk 0:34:54.3]} 2. Nf3 {[%clk 0:34:44.2]} 2... d6 {[%clk 0:34:51.7]} 3. d4 {[%clk 0:34:32.8]} 3... cxd4 {[%clk 0:34:38.8]} 4. Nxd4 {[%clk 0:34:20.6]} 4... Nf6 {[%clk 0:34:24.7]} 5. Nc3 {[%clk 0:34:00.9]} 5... a6 {[%clk 0:34:15.5]} 6. Be2 {[%clk 0:33:57.8]} 6... e5 {[%clk 0:34:03.3]} 7. Nb3 {[%clk 0:33:44.6]} 7... Be7 {[%clk 0:33:45.1]} 8. Be3 {[%clk 0:33:42.4]} 8... Be6 {[%clk 0:33:32.9]} 9. O-O {[%clk 0:33:04.3]} 9... O-O {[%clk 0:33:21.3]} 10. f3 {[%clk 0:32:49.8]} 10... d5 {[%clk 0:33:13.7]} 11. exd5 {[%clk 0:32:32.3]} 11... Nxd5 {[%clk 0:33:10.8]} 12. Nxd5 {[%clk 0:32:32.4]} 12... Bxd5 {[%clk 0:33:11.5]} 13. c4 {[%clk 0:32:29.4]} 13... Be6 {[%clk 0:32:53.9]} 14. Nc5 {[%clk 0:32:06.8]} 14... Qb6 {[%clk 0:31:13]} 15. Qb3 {[%clk 0:31:46.9]} 15... Bxc5 {[%clk 0:26:40.3]} 16. Qxb6 {[%clk 0:31:44.9]} 16... Bxb6 {[%clk 0:26:39.9]} 17. Bxb6 {[%clk 0:31:43.6]} 17... Nd7 {[%clk 0:26:26.8]} 18. Be3 {[%clk 0:30:13.5]} 18... Rac8 {[%clk 0:25:52.3]} 19. Rfd1 {[%clk 0:29:42.3]} 19... Nc5 {[%clk 0:25:18.9]} 20. Rac1 {[%clk 0:28:05.1]} 20... a5 {[%clk 0:24:55.4]} 21. Rd6 {[%clk 0:27:34.1]} 21... Na6 {[%clk 0:20:52.8]} 22. Rb6 {[%clk 0:26:39.5]} 22... Rc7 {[%clk 0:18:16.9]} 23. Rb5 {[%clk 0:26:13.4]} 23... f6 {[%clk 0:17:56.6]} 24. Rxa5 {[%clk 0:26:08.9]} 24... Rfc8 {[%clk 0:17:34.6]} 25. Rb5 {[%clk 0:24:39.8]} 25... Kf7 {[%clk 0:14:31.8]} 26. Rb6 {[%clk 0:24:22.7]} 26... Nb8 {[%clk 0:12:04.9]} 27. b3 {[%clk 0:23:04.8]} 27... Nc6 {[%clk 0:11:12.5]} 28. Kf2 {[%clk 0:22:00.7]} 28... Ra8 {[%clk 0:09:38.1]} 29. a4 {[%clk 0:21:39.6]} 29... Na5 {[%clk 0:09:15.6]} 30. Rb5 {[%clk 0:21:24.1]} 30... Ke7 {[%clk 0:08:29.6]} 31. Bb6 {[%clk 0:20:34.9]} 31... Nxb3 {[%clk 0:08:04.2]} 32. Rxb3 {[%clk 0:20:26]} 32... Rc6 {[%clk 0:07:52.2]} 33. a5 {[%clk 0:20:15]} 33... Rac8 {[%clk 0:07:21.7]} 34. Rb4 {[%clk 0:20:00.4]} 34... f5 {[%clk 0:07:02.6]} 35. c5 {[%clk 0:19:50.9]} 35... g5 {[%clk 0:06:46.3]} 36. Bb5 {[%clk 0:19:46.3]} 36... Rxb6 {[%clk 0:05:38.3]} 37. axb6 {[%clk 0:19:43]} 37... Bd5 {[%clk 0:05:19.9]} 38. c6 {[%clk 0:19:43.6]} 38... bxc6 {[%clk 0:04:07.9]} 39. b7 {[%clk 0:19:42.1]} 39... Rb8 {[%clk 0:03:59.1]} 40. Bxc6 {[%clk 0:19:41.6]} 40... Bxc6 {[%clk 0:03:34.5]} 41. Rxc6 {[%clk 0:19:37.2]} 41... Kd7 {[%clk 0:03:29.9]} 42. Rh6 {[%clk 0:19:30.8]} 1-0

[Event "Live Chess"]
[Site "Chess.com"]
[Date "2021.03.17"]
[Round "4"]
[White "ninjaforce"]
[Black "serverbusy"]
[Result "1/2-1/2"]
[CurrentPosition "8/4k3/3pN3/3Pp2p/4Pp2/5PbK/6P1/8 w - -"]
[Timezone "UTC"]
[ECO "C88"]
[ECOUrl "https://www.chess.com/openings/Ruy-Lopez-Opening-Morphy-Defense-Closed-6.Re1-b5-7.Bb3"]
[UTCDate "2021.03.17"]
[UTCTime "03:01:00"]
[WhiteElo "2055"]
[BlackElo "1644"]
[TimeControl "2100+2"]
[Termination "Game drawn by agreement"]
[StartTime "03:01:00"]
[EndDate "2021.03.17"]
[EndTime "04:12:25"]
[Link "https://www.chess.com/game/live/9689091665"]

1. e4 {[%clk 0:35:02]} 1... e5 {[%clk 0:34:59.6]} 2. Nf3 {[%clk 0:35:01.1]} 2... Nc6 {[%clk 0:34:59.8]} 3. Bb5 {[%clk 0:35:01.1]} 3... a6 {[%clk 0:34:59.5]} 4. Ba4 {[%clk 0:35:01.1]} 4... Nf6 {[%clk 0:34:59.6]} 5. O-O {[%clk 0:35:00.2]} 5... b5 {[%clk 0:34:58.5]} 6. Bb3 {[%clk 0:35:00.3]} 6... Be7 {[%clk 0:34:59.2]} 7. Re1 {[%clk 0:34:59.5]} 7... d6 {[%clk 0:34:58.2]} 8. c3 {[%clk 0:34:58.9]} 8... O-O {[%clk 0:34:58.3]} 9. h3 {[%clk 0:34:58.3]} 9... Na5 {[%clk 0:34:58.1]} 10. Bc2 {[%clk 0:34:52.6]} 10... c5 {[%clk 0:34:58.1]} 11. d4 {[%clk 0:34:48.1]} 11... Qc7 {[%clk 0:34:57.3]} 12. d5 {[%clk 0:34:46.2]} 12... c4 {[%clk 0:34:54.5]} 13. Nbd2 {[%clk 0:34:29.1]} 13... Re8 {[%clk 0:34:52.7]} 14. a4 {[%clk 0:34:05]} 14... Bd7 {[%clk 0:34:44.8]} 15. Nf1 {[%clk 0:31:05.6]} 15... Bf8 {[%clk 0:34:42.8]} 16. Bg5 {[%clk 0:30:31.2]} 16... Qd8 {[%clk 0:33:47.8]} 17. b4 {[%clk 0:24:01.9]} 17... cxb3 {[%clk 0:32:58.5]} 18. Bxb3 {[%clk 0:24:01.7]} 18... Nxb3 {[%clk 0:32:44.2]} 19. Qxb3 {[%clk 0:24:03.6]} 19... bxa4 {[%clk 0:32:31.9]} 20. Qa3 {[%clk 0:23:50.5]} 20... h6 {[%clk 0:31:58.1]} 21. Bxf6 {[%clk 0:22:44.9]} 21... Qxf6 {[%clk 0:31:56.2]} 22. N1d2 {[%clk 0:22:31.8]} 22... Rab8 {[%clk 0:31:00.2]} 23. Rab1 {[%clk 0:21:50.6]} 23... Rb5 {[%clk 0:30:54.5]} 24. c4 {[%clk 0:21:39.4]} 24... Rc5 {[%clk 0:29:37.8]} 25. Rb6 {[%clk 0:21:16]} 25... Qd8 {[%clk 0:28:49.5]} 26. Reb1 {[%clk 0:20:03.2]} 26... Bb5 {[%clk 0:28:16.7]} 27. R6xb5 {[%clk 0:17:20.1]} 27... axb5 {[%clk 0:28:14.6]} 28. cxb5 {[%clk 0:17:22]} 28... Qa5 {[%clk 0:23:23.8]} 29. Rb4 {[%clk 0:16:54.1]} 29... Rxb5 {[%clk 0:18:30.8]} 30. Rxa4 {[%clk 0:15:54.1]} 30... Qb6 {[%clk 0:18:27.8]} 31. Ra6 {[%clk 0:15:42]} 31... Qc5 {[%clk 0:18:25]} 32. Qa4 {[%clk 0:15:22.1]} 32... Reb8 {[%clk 0:17:08.7]} 33. Rc6 {[%clk 0:14:29.8]} 33... Qb4 {[%clk 0:16:51.3]} 34. Qxb4 {[%clk 0:13:58]} 34... Rxb4 {[%clk 0:16:50.3]} 35. Nc4 {[%clk 0:13:57.4]} 35... Rd8 {[%clk 0:16:11.2]} 36. h4 {[%clk 0:13:45.3]} 36... Rbb8 {[%clk 0:15:22.3]} 37. Nb6 {[%clk 0:12:29.1]} 37... g6 {[%clk 0:14:12.8]} 38. Nd2 {[%clk 0:12:19.4]} 38... f5 {[%clk 0:13:51]} 39. Kh2 {[%clk 0:11:22.6]} 39... Be7 {[%clk 0:13:07.8]} 40. Kh3 {[%clk 0:10:50.7]} 40... Rf8 {[%clk 0:12:05.8]} 41. Nd7 {[%clk 0:10:20.9]} 41... Rbc8 {[%clk 0:09:46]} 42. Nxf8 {[%clk 0:09:44]} 42... Rxf8 {[%clk 0:09:42.3]} 43. f3 {[%clk 0:09:09.5]} 43... f4 {[%clk 0:08:38.4]} 44. Nc4 {[%clk 0:08:39.9]} 44... Rf6 {[%clk 0:08:16.4]} 45. Rc7 {[%clk 0:07:33.9]} 45... Rf7 {[%clk 0:07:15]} 46. Rd7 {[%clk 0:07:22.5]} 46... Bf8 {[%clk 0:06:42.7]} 47. Rxf7 {[%clk 0:06:18.3]} 47... Kxf7 {[%clk 0:06:42.3]} 48. Kg4 {[%clk 0:06:18.1]} 48... Be7 {[%clk 0:06:05.5]} 49. h5 {[%clk 0:05:06.4]} 49... Bf8 {[%clk 0:04:10.2]} 50. hxg6+ {[%clk 0:03:57.5]} 50... Kxg6 {[%clk 0:04:09.4]} 51. Nb6 {[%clk 0:03:54.5]} 51... h5+ {[%clk 0:03:30.7]} 52. Kh4 {[%clk 0:03:50.9]} 52... Be7+ {[%clk 0:03:25.7]} 53. Kh3 {[%clk 0:03:51.4]} 53... Bd8 {[%clk 0:03:19.1]} 54. Nc8 {[%clk 0:03:48.1]} 54... Bc7 {[%clk 0:03:17.6]} 55. Ne7+ {[%clk 0:03:46.6]} 55... Kg5 {[%clk 0:03:06.5]} 56. Nf5 {[%clk 0:03:43]} 56... Bb8 {[%clk 0:02:56.8]} 57. Ng7 {[%clk 0:03:37.5]} 57... Ba7 {[%clk 0:02:18.3]} 58. Ne6+ {[%clk 0:03:17]} 58... Kg6 {[%clk 0:02:11.1]} 59. Nf8+ {[%clk 0:02:38]} 59... Kf7 {[%clk 0:01:49.9]} 60. Ne6 {[%clk 0:02:31.2]} 60... Bf2 {[%clk 0:01:36.6]} 61. Nd8+ {[%clk 0:02:26.4]} 61... Ke7 {[%clk 0:01:36.1]} 62. Ne6 {[%clk 0:02:15.7]} 62... Bg3 {[%clk 0:01:34]} 63. Nc7 {[%clk 0:02:00.8]} 63... Kd7 {[%clk 0:01:34.1]} 64. Ne6 {[%clk 0:01:50.4]} 64... Ke7 {[%clk 0:01:35.4]} 1/2-1/2

[Event "Live Chess"]
[Site "Chess.com"]
[Date "2021.03.17"]
[Round "4"]
[White "KingSmasher35"]
[Black "stratus_junior"]
[Result "1/2-1/2"]
[CurrentPosition "r4r1k/1p4b1/p1nBBn1p/3p4/3P4/2P3P1/PP3RPP/5RK1 b - -"]
[Timezone "UTC"]
[ECO "D00"]
[ECOUrl "https://www.chess.com/openings/Queens-Pawn-Opening-Accelerated-London-Steinitz-Countergambit"]
[UTCDate "2021.03.17"]
[UTCTime "03:00:55"]
[WhiteElo "1789"]
[BlackElo "2054"]
[TimeControl "2100+2"]
[Termination "Game drawn by agreement"]
[StartTime "03:00:55"]
[EndDate "2021.03.17"]
[EndTime "04:01:53"]
[Link "https://www.chess.com/game/live/9689092019"]

1. d4 {[%clk 0:34:58.3]} 1... d5 {[%clk 0:35:00.5]} 2. Bf4 {[%clk 0:34:57.2]} 2... c5 {[%clk 0:35:00.5]} 3. e3 {[%clk 0:34:54.3]} 3... cxd4 {[%clk 0:35:01.3]} 4. exd4 {[%clk 0:34:53.2]} 4... Nc6 {[%clk 0:35:02.4]} 5. c3 {[%clk 0:34:35]} 5... f6 {[%clk 0:35:01.8]} 6. Nf3 {[%clk 0:34:23.4]} 6... g5 {[%clk 0:35:01.6]} 7. Nxg5 {[%clk 0:33:13.9]} 7... fxg5 {[%clk 0:35:00.7]} 8. Qh5+ {[%clk 0:33:11.1]} 8... Kd7 {[%clk 0:35:00.7]} 9. Bxg5 {[%clk 0:31:55.7]} 9... Qe8 {[%clk 0:29:30.8]} 10. Qf3 {[%clk 0:30:38.3]} 10... Nf6 {[%clk 0:29:29.6]} 11. Bd3 {[%clk 0:26:43.2]} 11... Qh5 {[%clk 0:24:08.8]} 12. Qf4 {[%clk 0:24:56.6]} 12... Bg7 {[%clk 0:21:57.7]} 13. O-O {[%clk 0:24:42.4]} 13... Rf8 {[%clk 0:21:10.1]} 14. Qg3 {[%clk 0:21:29.7]} 14... Kd8 {[%clk 0:17:23.1]} 15. Na3 {[%clk 0:20:32.7]} 15... Qg4 {[%clk 0:17:13.9]} 16. Rae1 {[%clk 0:18:00.7]} 16... Qxg3 {[%clk 0:16:20.8]} 17. fxg3 {[%clk 0:17:51.8]} 17... h6 {[%clk 0:16:11.5]} 18. Bf4 {[%clk 0:17:28.7]} 18... a6 {[%clk 0:15:43.9]} 19. Nc2 {[%clk 0:16:27.6]} 19... Bd7 {[%clk 0:13:30.6]} 20. Re2 {[%clk 0:12:45]} 20... Bg4 {[%clk 0:13:03.6]} 21. Ref2 {[%clk 0:12:30.9]} 21... Kd7 {[%clk 0:11:23.2]} 22. Ne3 {[%clk 0:12:26.2]} 22... e6 {[%clk 0:11:19.6]} 23. Be5 {[%clk 0:11:47]} 23... Bf5 {[%clk 0:10:39.2]} 24. Nxf5 {[%clk 0:10:26.6]} 24... exf5 {[%clk 0:10:23.7]} 25. Bxf5+ {[%clk 0:09:25]} 25... Ke7 {[%clk 0:10:21.3]} 26. Bc7 {[%clk 0:09:02.7]} 26... Kf7 {[%clk 0:09:56.1]} 27. Bd7 {[%clk 0:07:54.4]} 27... Kg8 {[%clk 0:09:13.4]} 28. Be6+ {[%clk 0:07:29.2]} 28... Kh8 {[%clk 0:09:12.2]} 29. Bd6 {[%clk 0:07:13.4]} 29... Rfd8 {[%clk 0:04:41.8]} 30. Bc7 {[%clk 0:07:11.6]} 30... Rf8 {[%clk 0:04:24.7]} 31. Bd6 {[%clk 0:07:10.3]} 1/2-1/2

[Event "Live Chess"]
[Site "Chess.com"]
[Date "2021.03.17"]
[Round "4"]
[White "championps"]
[Black "David_Askin"]
[Result "0-1"]
[CurrentPosition "2r2rk1/4qppp/pp6/8/5B2/P7/Bn2RPPP/4R1K1 b - -"]
[Timezone "UTC"]
[ECO "B10"]
[ECOUrl "https://www.chess.com/openings/Caro-Kann-Defense-Accelerated-Panov-Attack"]
[UTCDate "2021.03.17"]
[UTCTime "03:01:00"]
[WhiteElo "1770"]
[BlackElo "2023"]
[TimeControl "2100+2"]
[Termination "David_Askin won by resignation"]
[StartTime "03:01:00"]
[EndDate "2021.03.17"]
[EndTime "03:55:30"]
[Link "https://www.chess.com/game/live/9689092873"]

1. c4 {[%clk 0:35:01.1]} 1... c6 {[%clk 0:35:00.2]} 2. e4 {[%clk 0:35:01.2]} 2... d5 {[%clk 0:35:00.4]} 3. exd5 {[%clk 0:34:59.6]} 3... cxd5 {[%clk 0:35:02.3]} 4. cxd5 {[%clk 0:35:00.9]} 4... Nf6 {[%clk 0:35:03.5]} 5. Nc3 {[%clk 0:35:01.1]} 5... Nxd5 {[%clk 0:35:02.2]} 6. d4 {[%clk 0:34:55.9]} 6... e6 {[%clk 0:34:37.9]} 7. Nf3 {[%clk 0:34:53.4]} 7... Bb4 {[%clk 0:34:33.6]} 8. Bd2 {[%clk 0:34:53.6]} 8... O-O {[%clk 0:34:28.5]} 9. Bd3 {[%clk 0:34:42.7]} 9... Nc6 {[%clk 0:34:19.6]} 10. O-O {[%clk 0:34:10.5]} 10... Nf6 {[%clk 0:33:38.4]} 11. a3 {[%clk 0:32:44.9]} 11... Be7 {[%clk 0:33:13.3]} 12. Bf4 {[%clk 0:31:35.7]} 12... b6 {[%clk 0:32:19.7]} 13. Bc4 {[%clk 0:30:18.5]} 13... Bb7 {[%clk 0:31:23.9]} 14. Re1 {[%clk 0:29:21.8]} 14... Rc8 {[%clk 0:30:09.5]} 15. Ba2 {[%clk 0:27:30.4]} 15... Na5 {[%clk 0:29:24.5]} 16. Rc1 {[%clk 0:26:37.2]} 16... Nc4 {[%clk 0:23:18.4]} 17. Qe2 {[%clk 0:23:44.9]} 17... Bxf3 {[%clk 0:14:21.4]} 18. Qxf3 {[%clk 0:23:40.9]} 18... a6 {[%clk 0:09:14.1]} 19. d5 {[%clk 0:20:53.2]} 19... Nxd5 {[%clk 0:08:02]} 20. Nxd5 {[%clk 0:20:44]} 20... exd5 {[%clk 0:08:01.2]} 21. Rcd1 {[%clk 0:18:00.3]} 21... d4 {[%clk 0:05:22.3]} 22. Qe2 {[%clk 0:17:25.4]} 22... d3 {[%clk 0:01:54.1]} 23. Rxd3 {[%clk 0:17:19.3]} 23... Qe8 {[%clk 0:01:17.6]} 24. Qxe7 {[%clk 0:16:53.6]} 24... Nxb2 {[%clk 0:01:12.4]} 25. Rde3 {[%clk 0:16:29.4]} 25... Qxe7 {[%clk 0:01:06.5]} 26. R3e2 {[%clk 0:16:26.7]} 0-1

[Event "Live Chess"]
[Site "Chess.com"]
[Date "2021.03.17"]
[Round "4"]
[White "nathanf314"]
[Black "jah23"]
[Result "1-0"]
[CurrentPosition "3k2r1/pp5p/2b5/4QB2/8/8/PP3PP1/7K w - -"]
[Timezone "UTC"]
[ECO "C02"]
[ECOUrl "https://www.chess.com/openings/French-Defense-Advance-Paulsen-Milner-Barry-Gambit"]
[UTCDate "2021.03.17"]
[UTCTime "03:01:03"]
[WhiteElo "2015"]
[BlackElo "1446"]
[TimeControl "2100+2"]
[Termination "nathanf314 won by resignation"]
[StartTime "03:01:03"]
[EndDate "2021.03.17"]
[EndTime "03:26:58"]
[Link "https://www.chess.com/game/live/9689093217"]

1. e4 {[%clk 0:35:01.4]} 1... e6 {[%clk 0:31:56.1]} 2. d4 {[%clk 0:34:57.3]} 2... d5 {[%clk 0:31:53.7]} 3. e5 {[%clk 0:34:56.1]} 3... c5 {[%clk 0:31:53.2]} 4. c3 {[%clk 0:34:57.6]} 4... Nc6 {[%clk 0:31:53.4]} 5. Nf3 {[%clk 0:34:58.7]} 5... Qb6 {[%clk 0:31:52]} 6. Bd3 {[%clk 0:35:00]} 6... Bd7 {[%clk 0:31:52.2]} 7. O-O {[%clk 0:35:00.4]} 7... cxd4 {[%clk 0:30:24.6]} 8. cxd4 {[%clk 0:35:02.3]} 8... Nxd4 {[%clk 0:29:21.1]} 9. Nxd4 {[%clk 0:35:04.2]} 9... Qxd4 {[%clk 0:29:21.2]} 10. Nc3 {[%clk 0:35:06.1]} 10... Qxe5 {[%clk 0:28:08.6]} 11. Re1 {[%clk 0:34:56.6]} 11... Qb8 {[%clk 0:27:20.2]} 12. Nxd5 {[%clk 0:34:45.7]} 12... Bd6 {[%clk 0:27:01.1]} 13. Qg4 {[%clk 0:34:14.2]} 13... Kf8 {[%clk 0:26:15]} 14. Bg5 {[%clk 0:33:51.8]} 14... Nh6 {[%clk 0:25:04.6]} 15. Bxh6 {[%clk 0:33:47.4]} 15... gxh6 {[%clk 0:25:03.2]} 16. Nf6 {[%clk 0:33:46.5]} 16... Bc6 {[%clk 0:24:11.9]} 17. Qh4 {[%clk 0:33:25.6]} 17... Qd8 {[%clk 0:21:39]} 18. Qxh6+ {[%clk 0:33:04.6]} 18... Ke7 {[%clk 0:21:25.1]} 19. Rad1 {[%clk 0:32:08.6]} 19... Qc7 {[%clk 0:19:17.9]} 20. Bf5 {[%clk 0:31:13.3]} 20... Bxh2+ {[%clk 0:19:00]} 21. Kh1 {[%clk 0:31:01.1]} 21... Rhg8 {[%clk 0:17:40.7]} 22. Nxg8+ {[%clk 0:29:41.8]} 22... Rxg8 {[%clk 0:17:38.2]} 23. Rxe6+ {[%clk 0:29:15.2]} 23... fxe6 {[%clk 0:17:21.9]} 24. Qxe6+ {[%clk 0:29:17.1]} 24... Kf8 {[%clk 0:17:16.9]} 25. Qf6+ {[%clk 0:29:19]} 25... Ke8 {[%clk 0:17:06.2]} 26. Re1+ {[%clk 0:29:18.2]} 26... Be5 {[%clk 0:17:05.9]} 27. Rxe5+ {[%clk 0:29:18.8]} 27... Qxe5 {[%clk 0:17:06.8]} 28. Qxe5+ {[%clk 0:29:20.7]} 28... Kd8 {[%clk 0:17:02.5]} 1-0

[Event "Live Chess"]
[Site "Chess.com"]
[Date "2021.03.17"]
[Round "4"]
[White "chessp1234"]
[Black "SmilyFace4"]
[Result "1/2-1/2"]
[CurrentPosition "8/8/8/8/8/1K5k/8/8 b - -"]
[Timezone "UTC"]
[ECO "B07"]
[ECOUrl "https://www.chess.com/openings/Pirc-Defense-Czech-Defense"]
[UTCDate "2021.03.17"]
[UTCTime "03:00:53"]
[WhiteElo "1753"]
[BlackElo "2000"]
[TimeControl "2100+2"]
[Termination "Game drawn by insufficient material"]
[StartTime "03:00:53"]
[EndDate "2021.03.17"]
[EndTime "04:15:14"]
[Link "https://www.chess.com/game/live/9689093573"]

1. e4 {[%clk 0:34:44.8]} 1... d6 {[%clk 0:34:56.4]} 2. d4 {[%clk 0:34:42.1]} 2... Nf6 {[%clk 0:34:57.3]} 3. Nc3 {[%clk 0:34:41.6]} 3... c6 {[%clk 0:34:58.4]} 4. h3 {[%clk 0:33:51.1]} 4... e5 {[%clk 0:33:04.7]} 5. Nf3 {[%clk 0:33:19.2]} 5... Nbd7 {[%clk 0:32:04.8]} 6. a4 {[%clk 0:33:03.5]} 6... Be7 {[%clk 0:31:09.6]} 7. Bc4 {[%clk 0:32:50.9]} 7... O-O {[%clk 0:29:38.1]} 8. O-O {[%clk 0:32:22.5]} 8... a6 {[%clk 0:28:27.1]} 9. Re1 {[%clk 0:30:31.1]} 9... Rb8 {[%clk 0:26:15.6]} 10. a5 {[%clk 0:27:16.4]} 10... Qc7 {[%clk 0:22:54.5]} 11. Qe2 {[%clk 0:26:53.7]} 11... exd4 {[%clk 0:21:17.8]} 12. Nxd4 {[%clk 0:26:45.4]} 12... Ne5 {[%clk 0:20:38.7]} 13. Bb3 {[%clk 0:26:15.5]} 13... c5 {[%clk 0:20:11.8]} 14. Nf5 {[%clk 0:25:22.3]} 14... Bxf5 {[%clk 0:19:28.7]} 15. exf5 {[%clk 0:25:16]} 15... Rfe8 {[%clk 0:17:32.8]} 16. Nd5 {[%clk 0:23:40.3]} 16... Nxd5 {[%clk 0:17:17.1]} 17. Bxd5 {[%clk 0:23:33.7]} 17... Bf6 {[%clk 0:15:18.3]} 18. Bd2 {[%clk 0:19:24.7]} 18... Qd7 {[%clk 0:13:53.2]} 19. Qh5 {[%clk 0:18:50]} 19... g6 {[%clk 0:12:41.1]} 20. fxg6 {[%clk 0:18:31.3]} 20... hxg6 {[%clk 0:12:38.8]} 21. Qh6 {[%clk 0:17:45.2]} 21... Bg7 {[%clk 0:12:15]} 22. Qg5 {[%clk 0:17:02.1]} 22... Qe7 {[%clk 0:10:56.6]} 23. Qg3 {[%clk 0:15:25.9]} 23... Qf6 {[%clk 0:09:32.2]} 24. Bc3 {[%clk 0:14:15.4]} 24... Qf5 {[%clk 0:09:08]} 25. Be4 {[%clk 0:13:28.1]} 25... Qd7 {[%clk 0:07:54.1]} 26. Rad1 {[%clk 0:13:06.7]} 26... Rbd8 {[%clk 0:07:27.9]} 27. Bd5 {[%clk 0:12:29.8]} 27... Qf5 {[%clk 0:07:06.8]} 28. Bxb7 {[%clk 0:11:44.3]} 28... Qxc2 {[%clk 0:06:53.2]} 29. Be4 {[%clk 0:10:13.7]} 29... Qa4 {[%clk 0:06:31.5]} 30. Bd5 {[%clk 0:10:04.7]} 30... Kf8 {[%clk 0:06:06.4]} 31. f4 {[%clk 0:08:49.1]} 31... Nc6 {[%clk 0:05:32.1]} 32. b3 {[%clk 0:07:46]} 32... Rxe1+ {[%clk 0:04:11.2]} 33. Rxe1 {[%clk 0:07:27.8]} 33... Qb5 {[%clk 0:03:41.2]} 34. Bxg7+ {[%clk 0:06:41.9]} 34... Kxg7 {[%clk 0:03:39.7]} 35. Qc3+ {[%clk 0:06:39.1]} 35... Nd4 {[%clk 0:03:37.9]} 36. Re7 {[%clk 0:06:18.3]} 36... Rd7 {[%clk 0:03:28.9]} 37. Re3 {[%clk 0:04:29.5]} 37... Kf8 {[%clk 0:03:15.3]} 38. Qe1 {[%clk 0:04:11.1]} 38... Nf5 {[%clk 0:02:21.8]} 39. Re8+ {[%clk 0:03:54.3]} 39... Kg7 {[%clk 0:02:22.5]} 40. g4 {[%clk 0:03:42]} 40... Qd3 {[%clk 0:02:02.2]} 41. Bc4 {[%clk 0:03:17.1]} 41... Qd4+ {[%clk 0:01:40.5]} 42. Kh1 {[%clk 0:03:12.6]} 42... d5 {[%clk 0:01:16.7]} 43. Bxa6 {[%clk 0:02:41.2]} 43... Nd6 {[%clk 0:01:17.4]} 44. Qe5+ {[%clk 0:02:33.6]} 44... f6 {[%clk 0:01:01.2]} 45. Re7+ {[%clk 0:02:22.7]} 45... Rxe7 {[%clk 0:01:01.8]} 46. Qxe7+ {[%clk 0:02:23.5]} 46... Nf7 {[%clk 0:01:03]} 47. Be2 {[%clk 0:02:04]} 47... Qa1+ {[%clk 0:00:56.4]} 48. Kg2 {[%clk 0:02:01.2]} 48... Qxa5 {[%clk 0:00:57]} 49. Qe6 {[%clk 0:01:45]} 49... Qd2 {[%clk 0:00:55]} 50. Kf3 {[%clk 0:01:39.7]} 50... Qc3+ {[%clk 0:00:50.4]} 51. Qe3 {[%clk 0:01:38.9]} 51... Qxe3+ {[%clk 0:00:43.6]} 52. Kxe3 {[%clk 0:01:38.9]} 52... Nd6 {[%clk 0:00:44.6]} 53. Bd3 {[%clk 0:01:27.2]} 53... f5 {[%clk 0:00:35]} 54. Kd2 {[%clk 0:01:06]} 54... Ne4+ {[%clk 0:00:34.7]} 55. Ke3 {[%clk 0:00:32.7]} 55... Nf6 {[%clk 0:00:29.8]} 56. gxf5 {[%clk 0:00:29.9]} 56... d4+ {[%clk 0:00:17.9]} 57. Kf3 {[%clk 0:00:28.6]} 57... gxf5 {[%clk 0:00:19.8]} 58. Bxf5 {[%clk 0:00:29.3]} 58... Nd5 {[%clk 0:00:19.6]} 59. Ke4 {[%clk 0:00:26.7]} 59... Kf6 {[%clk 0:00:18.3]} 60. Kxd5 {[%clk 0:00:23.7]} 60... Kxf5 {[%clk 0:00:19.8]} 61. Kc4 {[%clk 0:00:15.6]} 61... Kxf4 {[%clk 0:00:21.1]} 62. Kd3 {[%clk 0:00:11.3]} 62... Kg3 {[%clk 0:00:20.8]} 63. b4 {[%clk 0:00:10.8]} 63... cxb4 {[%clk 0:00:18.2]} 64. Kxd4 {[%clk 0:00:12]} 64... b3 {[%clk 0:00:18.9]} 65. Kc3 {[%clk 0:00:12.7]} 65... Kxh3 {[%clk 0:00:20.1]} 66. Kxb3 {[%clk 0:00:14]} 1/2-1/2